[Event "Titled Tuesday Blitz September 27 Early 2022"]
[White "Ribeiro, Matheus Mendes Domingues"]
[Black "Rios Escobar, Adan"]
[WhiteFideId "324226923"]
[BlackFideId "3403645"]
[WhiteElo "2047"]
[BlackElo "2331"]
[Result "1-0"]
[Round "05"]
[TimeControl "180+1"]
[Date "2022.09.27"]
[WhiteClock "0:01:58"]
[BlackClock "0:00:13"]

1. c4 {[%clk 0:03:00]}  Nf6 {[%clk 0:02:50]} 2. Nc3 {[%clk 0:03:01]}  g6 {[%clk 0:02:47]} 3. e4 {[%clk 0:03:00]}  d6 {[%clk 0:02:46]} 4. d4 {[%clk 0:03:00]}  Bg7 {[%clk 0:02:46]} 5. h3 {[%clk 0:03:01]}  O-O {[%clk 0:02:33]} 6. Be3 {[%clk 0:03:01]}  Nc6 {[%clk 0:02:31]} 7. Nf3 {[%clk 0:02:59]}  e5 {[%clk 0:02:11]} 8. d5 {[%clk 0:02:58]}  Nd4 {[%clk 0:01:46]} 9. Nxd4 {[%clk 0:02:51]}  exd4 {[%clk 0:01:47]} 10. Bxd4 {[%clk 0:02:52]}  Re8 {[%clk 0:01:40]} 11. Bd3 {[%clk 0:02:51]}  Nxe4 {[%clk 0:01:33]} 12. Bxe4 {[%clk 0:02:49]}  Bf5 {[%clk 0:01:19]} 13. Bxg7 {[%clk 0:02:45]}  Bxe4 {[%clk 0:01:17]} 14. O-O {[%clk 0:02:45]}  Kxg7 {[%clk 0:01:02]} 15. Re1 {[%clk 0:02:45]}  Bf5 {[%clk 0:00:57]} 16. Rxe8 {[%clk 0:02:45]}  Qxe8 {[%clk 0:00:56]} 17. Qd4+ {[%clk 0:02:46]}  f6 {[%clk 0:00:38]} 18. Kf1 {[%clk 0:02:41]}  Qe5 {[%clk 0:00:19]} 19. Qxe5 {[%clk 0:02:37]}  fxe5 {[%clk 0:00:20]} 20. Ke2 {[%clk 0:02:36]}  a6 {[%clk 0:00:19]} 21. b4 {[%clk 0:02:35]}  Bd7 {[%clk 0:00:17]} 22. Ke3 {[%clk 0:02:34]}  Rf8 {[%clk 0:00:17]} 23. Ne4 {[%clk 0:02:34]}  h6 {[%clk 0:00:16]} 24. c5 {[%clk 0:02:34]}  Bf5 {[%clk 0:00:13]} 25. f3 {[%clk 0:02:30]}  Bxe4 {[%clk 0:00:13]} 26. fxe4 {[%clk 0:02:31]}  Kf7 {[%clk 0:00:09]} 27. Rf1+ {[%clk 0:02:30]}  Ke7 {[%clk 0:00:09]} 28. Rxf8 {[%clk 0:02:31]}  Kxf8 {[%clk 0:00:10]} 29. Kd3 {[%clk 0:02:32]}  Ke7 {[%clk 0:00:10]} 30. Kc4 {[%clk 0:02:32]}  Kd7 {[%clk 0:00:10]} 31. a4 {[%clk 0:02:33]}  g5 {[%clk 0:00:10]} 32. a5 {[%clk 0:02:23]}  h5 {[%clk 0:00:06]} 33. b5 {[%clk 0:02:22]}  axb5+ {[%clk 0:00:05]} 34. Kxb5 {[%clk 0:02:23]}  dxc5 {[%clk 0:00:04]} 35. Kxc5 {[%clk 0:02:24]}  Ke7 {[%clk 0:00:03]} 36. d6+ {[%clk 0:02:08]}  cxd6+ {[%clk 0:00:02]} 37. Kb6 {[%clk 0:02:09]}  d5 {[%clk 0:00:02]} 38. exd5 {[%clk 0:02:10]}  e4 {[%clk 0:00:02]} 39. Kc7 {[%clk 0:02:10]}  e3 {[%clk 0:00:02]} 40. d6+ {[%clk 0:02:11]}  Kf7 {[%clk 0:00:03]} 41. d7 {[%clk 0:02:12]}  e2 {[%clk 0:00:03]} 42. d8=Q {[%clk 0:02:12]}  e1=Q {[%clk 0:00:04]} 43. Qxg5 {[%clk 0:02:08]}  h4 {[%clk 0:00:04]} 44. Qf5+ {[%clk 0:02:05]}  Kg7 {[%clk 0:00:04]} 45. Kxb7 {[%clk 0:02:02]}  Qb4+ {[%clk 0:00:03]} 46. Ka6 {[%clk 0:02:01]}  Qc4+ {[%clk 0:00:03]} 47. Qb5 {[%clk 0:02:01]}  Qe4 {[%clk 0:00:01]} 48. Qb7+ {[%clk 0:02:01]}  Qxb7+ {[%clk 0:00:01]} 49. Kxb7 {[%clk 0:02:02]}  Kf6 {[%clk 0:00:01]} 50. a6 {[%clk 0:02:03]}  Ke5 {[%clk 0:00:02]} 51. a7 {[%clk 0:02:04]}  Kf4 {[%clk 0:00:03]} 52. a8=Q {[%clk 0:02:05]}  Kg3 {[%clk 0:00:04]} 53. Qg8+ {[%clk 0:02:05]}  Kh2 {[%clk 0:00:05]} 54. g4 {[%clk 0:02:05]}  hxg3 {[%clk 0:00:05]} 55. h4 {[%clk 0:02:05]}  Kh3 {[%clk 0:00:05]} 56. h5 {[%clk 0:02:05]}  g2 {[%clk 0:00:06]} 57. h6 {[%clk 0:02:05]}  Kh2 {[%clk 0:00:05]} 58. h7 {[%clk 0:02:05]}  Kg1 {[%clk 0:00:06]} 59. h8=Q {[%clk 0:02:03]}  Kf1 {[%clk 0:00:07]} 60. Qa1+ {[%clk 0:02:03]}  Kf2 {[%clk 0:00:08]} 61. Qaa2+ {[%clk 0:02:03]}  Kf3 {[%clk 0:00:09]} 62. Qgxg2+ {[%clk 0:02:02]}  Kf4 {[%clk 0:00:10]} 63. Qae2 {[%clk 0:02:01]}  Kf5 {[%clk 0:00:09]} 64. Qee4+ {[%clk 0:02:00]}  Kf6 {[%clk 0:00:10]} 65. Qgg4 {[%clk 0:01:59]}  Kf7 {[%clk 0:00:11]} 66. Qee6+ {[%clk 0:01:58]}  Kf8 {[%clk 0:00:12]} 67. Qg7+ {[%clk 0:01:56]}  Kxg7 {[%clk 0:00:11]} 68. Qf5 {[%clk 0:01:56]}  Kg8 {[%clk 0:00:10]} 69. Qf6 {[%clk 0:01:54]}  Kh7 {[%clk 0:00:10]} 70. Qg5 {[%clk 0:01:55]}  Kh8 {[%clk 0:00:10]} 71. Kc7 {[%clk 0:01:56]}  Kh7 {[%clk 0:00:11]} 72. Kd7 {[%clk 0:01:56]}  Kh8 {[%clk 0:00:12]} 73. Ke7 {[%clk 0:01:57]}  Kh7 {[%clk 0:00:13]} 74. Kf7 {[%clk 0:01:58]}  Kh8 {[%clk 0:00:13]} 75. Qg7# {[%clk 0:01:58]} 1-0


[Site "https://www.chess.com"]

[Event "Titled Tuesday Blitz September 27 Early 2022"]
[White "Rose, Felix"]
[Black "Martin, Lewis"]
[WhiteFideId "5105722"]
[BlackFideId "410551"]
[WhiteElo "2039"]
[BlackElo "2145"]
[Result "1-0"]
[Round "05"]
[TimeControl "180+1"]
[Date "2022.09.27"]
[WhiteClock "0:00:10"]
[BlackClock "0:00:06"]

1. e4 {[%clk 0:02:59]}  c5 {[%clk 0:01:02]} 2. Nf3 {[%clk 0:02:59]}  d6 {[%clk 0:01:02]} 3. d4 {[%clk 0:02:59]}  cxd4 {[%clk 0:01:02]} 4. Nxd4 {[%clk 0:02:59]}  Nf6 {[%clk 0:01:02]} 5. Nc3 {[%clk 0:02:57]}  a6 {[%clk 0:01:03]} 6. Be3 {[%clk 0:02:45]}  e5 {[%clk 0:01:02]} 7. Nb3 {[%clk 0:02:45]}  Be7 {[%clk 0:01:02]} 8. f3 {[%clk 0:02:44]}  Be6 {[%clk 0:01:01]} 9. Qd2 {[%clk 0:02:44]}  O-O {[%clk 0:01:00]} 10. O-O-O {[%clk 0:02:44]}  Nc6 {[%clk 0:01:00]} 11. Nd5 {[%clk 0:02:38]}  Bxd5 {[%clk 0:00:53]} 12. exd5 {[%clk 0:02:38]}  Nb8 {[%clk 0:00:53]} 13. g4 {[%clk 0:02:33]}  b5 {[%clk 0:00:52]} 14. Kb1 {[%clk 0:02:26]}  Nfd7 {[%clk 0:00:50]} 15. h4 {[%clk 0:02:17]}  Nb6 {[%clk 0:00:49]} 16. Na5 {[%clk 0:02:10]}  Re8 {[%clk 0:00:34]} 17. g5 {[%clk 0:02:01]}  Qc7 {[%clk 0:00:32]} 18. h5 {[%clk 0:01:55]}  N8d7 {[%clk 0:00:31]} 19. Nc6 {[%clk 0:01:50]}  Bf8 {[%clk 0:00:30]} 20. Bh3 {[%clk 0:01:34]}  Rac8 {[%clk 0:00:27]} 21. Bxb6 {[%clk 0:01:29]}  Nxb6 {[%clk 0:00:25]} 22. Bxc8 {[%clk 0:01:29]}  Rxc8 {[%clk 0:00:26]} 23. g6 {[%clk 0:01:21]}  f5 {[%clk 0:00:19]} 24. h6 {[%clk 0:01:07]}  hxg6 {[%clk 0:00:18]} 25. h7+ {[%clk 0:00:35]}  Kh8 {[%clk 0:00:18]} 26. Rh2 {[%clk 0:00:35]}  Qf7 {[%clk 0:00:17]} 27. b3 {[%clk 0:00:25]}  Nxd5 {[%clk 0:00:16]} 28. Qxd5 {[%clk 0:00:25]}  Qxd5 {[%clk 0:00:17]} 29. Rxd5 {[%clk 0:00:26]}  Rxc6 {[%clk 0:00:17]} 30. Kb2 {[%clk 0:00:19]}  g5 {[%clk 0:00:17]} 31. Rh5 {[%clk 0:00:18]}  g6 {[%clk 0:00:15]} 32. Rh1 {[%clk 0:00:14]}  Be7 {[%clk 0:00:14]} 33. Rd3 {[%clk 0:00:12]}  Rc8 {[%clk 0:00:13]} 34. Rc3 {[%clk 0:00:12]}  Rf8 {[%clk 0:00:12]} 35. Rc7 {[%clk 0:00:12]}  Bd8 {[%clk 0:00:11]} 36. Rd7 {[%clk 0:00:12]}  Bf6 {[%clk 0:00:10]} 37. Rxd6 {[%clk 0:00:11]}  e4+ {[%clk 0:00:10]} 38. Kc1 {[%clk 0:00:11]}  exf3 {[%clk 0:00:10]} 39. Kd2 {[%clk 0:00:11]}  g4 {[%clk 0:00:10]} 40. Ke3 {[%clk 0:00:10]}  Bg5+ {[%clk 0:00:10]} 41. Kf2 {[%clk 0:00:09]}  Bf4 {[%clk 0:00:10]} 42. Rxg6 {[%clk 0:00:09]}  Re8 {[%clk 0:00:08]} 43. Rg8+ {[%clk 0:00:09]}  Rxg8 {[%clk 0:00:08]} 44. hxg8=Q+ {[%clk 0:00:10]}  Kxg8 {[%clk 0:00:08]} 45. Rh5 {[%clk 0:00:10]}  g3+ {[%clk 0:00:07]} 46. Kxf3 {[%clk 0:00:10]}  Bc7 {[%clk 0:00:06]} 47. Rxf5 {[%clk 0:00:10]}  Kg7 {[%clk 0:00:07]} 48. c4 {[%clk 0:00:10]}  bxc4 {[%clk 0:00:07]} 49. bxc4 {[%clk 0:00:11]}  Kg6 {[%clk 0:00:07]} 50. Rf8 {[%clk 0:00:10]}  Bd6 {[%clk 0:00:07]} 51. Ra8 {[%clk 0:00:10]}  Bc5 {[%clk 0:00:06]} 52. Rxa6+ {[%clk 0:00:10]} 1-0


[Site "https://www.chess.com"]

[Event "Titled Tuesday Blitz September 27 Early 2022"]
[White "Spalir, Monika"]
[Black "Eynullayev, Atilla"]
[WhiteFideId "14609118"]
[BlackFideId "13413570"]
[WhiteElo "2032"]
[BlackElo "1936"]
[Result "0-1"]
[Round "05"]
[TimeControl "180+1"]
[Date "2022.09.27"]
[WhiteClock "0:00:03"]
[BlackClock "0:00:35"]

1. d4 {[%clk 0:03:00]}  Nf6 {[%clk 0:02:58]} 2. c4 {[%clk 0:03:00]}  e6 {[%clk 0:02:58]} 3. Nf3 {[%clk 0:02:57]}  d5 {[%clk 0:02:58]} 4. Nc3 {[%clk 0:02:54]}  c5 {[%clk 0:02:59]} 5. cxd5 {[%clk 0:02:48]}  cxd4 {[%clk 0:02:58]} 6. Nxd4 {[%clk 0:02:38]}  Nxd5 {[%clk 0:02:54]} 7. e4 {[%clk 0:02:29]}  Nxc3 {[%clk 0:02:52]} 8. bxc3 {[%clk 0:02:30]}  Be7 {[%clk 0:02:47]} 9. Be2 {[%clk 0:02:07]}  O-O {[%clk 0:02:37]} 10. O-O {[%clk 0:02:08]}  b6 {[%clk 0:02:38]} 11. Bf3 {[%clk 0:01:49]}  Bb7 {[%clk 0:02:38]} 12. e5 {[%clk 0:01:42]}  Qc8 {[%clk 0:02:34]} 13. Bf4 {[%clk 0:01:28]}  Nd7 {[%clk 0:02:20]} 14. Rc1 {[%clk 0:01:21]}  Ba3 {[%clk 0:02:16]} 15. Rc2 {[%clk 0:01:18]}  Be7 {[%clk 0:02:14]} 16. Re1 {[%clk 0:01:11]}  Rd8 {[%clk 0:02:11]} 17. Bxb7 {[%clk 0:00:58]}  Qxb7 {[%clk 0:02:11]} 18. Qg4 {[%clk 0:00:59]}  Nf8 {[%clk 0:02:09]} 19. h4 {[%clk 0:00:55]}  Rac8 {[%clk 0:02:09]} 20. Rcc1 {[%clk 0:00:41]}  Ba3 {[%clk 0:02:06]} 21. Rcd1 {[%clk 0:00:33]}  Rxc3 {[%clk 0:02:06]} 22. h5 {[%clk 0:00:27]}  Rc4 {[%clk 0:01:54]} 23. Bh6 {[%clk 0:00:19]}  g6 {[%clk 0:01:51]} 24. Qf4 {[%clk 0:00:11]}  Be7 {[%clk 0:01:50]} 25. Re3 {[%clk 0:00:11]}  Qc7 {[%clk 0:00:46]} 26. Rf3 {[%clk 0:00:10]}  f5 {[%clk 0:00:46]} 27. Bxf8 {[%clk 0:00:03]}  Bxf8 {[%clk 0:00:42]} 28. hxg6 {[%clk 0:00:04]}  hxg6 {[%clk 0:00:42]} 29. Rh3 {[%clk 0:00:05]}  Bg7 {[%clk 0:00:39]} 30. Rhd3 {[%clk 0:00:03]}  Qxe5 {[%clk 0:00:39]} 31. Qf3 {[%clk 0:00:03]}  Rcxd4 {[%clk 0:00:39]} 32. Rxd4 {[%clk 0:00:03]}  Rxd4 {[%clk 0:00:39]} 33. Rxd4 {[%clk 0:00:03]}  Qxd4 {[%clk 0:00:40]} 34. Qa8+ {[%clk 0:00:03]}  Kh7 {[%clk 0:00:40]} 35. g3 {[%clk 0:00:04]}  Qd5 {[%clk 0:00:39]} 36. Qxa7 {[%clk 0:00:04]}  e5 {[%clk 0:00:40]} 37. g4 {[%clk 0:00:03]}  fxg4 {[%clk 0:00:40]} 38. Qe7 {[%clk 0:00:03]}  Qd1+ {[%clk 0:00:36]} 39. Kg2 {[%clk 0:00:03]}  Qf3+ {[%clk 0:00:36]} 40. Kf1 {[%clk 0:00:04]}  Qf6 {[%clk 0:00:36]} 41. Qc7 {[%clk 0:00:04]}  e4 {[%clk 0:00:36]} 42. Qc4 {[%clk 0:00:03]}  g3 {[%clk 0:00:35]} 43. Kg2 {[%clk 0:00:02]}  Qxf2+ {[%clk 0:00:35]} 44. Kh3 {[%clk 0:00:03]}  Qh2+ {[%clk 0:00:34]} 45. Kg4 {[%clk 0:00:03]}  g2 {[%clk 0:00:35]} 0-1


[Site "https://www.chess.com"]

[Event "Titled Tuesday Blitz September 27 Early 2022"]
[White "Runets, Ivan"]
[Black "Sailer, Mike"]
[WhiteFideId "13511564"]
[BlackFideId "2012901"]
[WhiteElo "1962"]
[BlackElo "2109"]
[Result "1-0"]
[Round "05"]
[TimeControl "180+1"]
[Date "2022.09.27"]
[WhiteClock "0:01:41"]
[BlackClock "0:00:16"]

1. d4 {[%clk 0:03:00]}  d5 {[%clk 0:02:59]} 2. c4 {[%clk 0:03:00]}  Bf5 {[%clk 0:02:48]} 3. Nc3 {[%clk 0:02:58]}  e6 {[%clk 0:02:48]} 4. Qb3 {[%clk 0:02:57]}  Nc6 {[%clk 0:02:48]} 5. cxd5 {[%clk 0:02:37]}  exd5 {[%clk 0:02:45]} 6. Be3 {[%clk 0:02:33]}  Bb4 {[%clk 0:02:38]} 7. Nf3 {[%clk 0:02:32]}  Nf6 {[%clk 0:02:14]} 8. Bg5 {[%clk 0:02:31]}  O-O {[%clk 0:02:04]} 9. e3 {[%clk 0:02:31]}  Qd6 {[%clk 0:01:55]} 10. Be2 {[%clk 0:02:27]}  Ne4 {[%clk 0:01:42]} 11. Bf4 {[%clk 0:02:27]}  Qg6 {[%clk 0:01:05]} 12. Nh4 {[%clk 0:02:25]}  Qf6 {[%clk 0:01:03]} 13. Nxf5 {[%clk 0:02:24]}  Qxf5 {[%clk 0:01:03]} 14. O-O {[%clk 0:02:22]}  Bxc3 {[%clk 0:01:03]} 15. bxc3 {[%clk 0:02:19]}  Nd2 {[%clk 0:00:55]} 16. Qxb7 {[%clk 0:02:18]}  Na5 {[%clk 0:00:43]} 17. Qxc7 {[%clk 0:02:17]}  Nxf1 {[%clk 0:00:40]} 18. Qxa5 {[%clk 0:01:51]}  Nd2 {[%clk 0:00:39]} 19. c4 {[%clk 0:01:44]}  Rfd8 {[%clk 0:00:16]} 20. Qxd2 {[%clk 0:01:41]} 1-0


[Site "https://www.chess.com"]

[Event "Titled Tuesday Blitz September 27 Early 2022"]
[White "Sadykov, Ramil"]
[Black "Bettalli, Francesco"]
[WhiteFideId "24113590"]
[BlackFideId "2816453"]
[WhiteElo "2243"]
[BlackElo "2216"]
[Result "1/2-1/2"]
[Round "05"]
[TimeControl "180+1"]
[Date "2022.09.27"]
[WhiteClock "0:00:40"]
[BlackClock "0:00:58"]

1. d4 {[%clk 0:02:38]}  Nf6 {[%clk 0:02:59]} 2. Nc3 {[%clk 0:02:36]}  d5 {[%clk 0:02:54]} 3. Bf4 {[%clk 0:02:34]}  c5 {[%clk 0:02:53]} 4. e4 {[%clk 0:02:30]}  Nxe4 {[%clk 0:02:45]} 5. Nxe4 {[%clk 0:02:24]}  dxe4 {[%clk 0:02:46]} 6. dxc5 {[%clk 0:02:25]}  Qa5+ {[%clk 0:02:41]} 7. c3 {[%clk 0:02:24]}  Qxc5 {[%clk 0:02:39]} 8. Qa4+ {[%clk 0:02:23]}  Nc6 {[%clk 0:02:37]} 9. Qxe4 {[%clk 0:02:15]}  Bf5 {[%clk 0:02:36]} 10. Qe3 {[%clk 0:02:10]}  Qxe3+ {[%clk 0:02:35]} 11. Bxe3 {[%clk 0:02:11]}  e5 {[%clk 0:02:35]} 12. O-O-O {[%clk 0:02:08]}  Rc8 {[%clk 0:02:31]} 13. Bd3 {[%clk 0:01:53]}  Bxd3 {[%clk 0:02:20]} 14. Rxd3 {[%clk 0:01:54]}  Be7 {[%clk 0:02:15]} 15. Ne2 {[%clk 0:01:46]}  O-O {[%clk 0:02:14]} 16. Rhd1 {[%clk 0:01:43]}  Rfd8 {[%clk 0:02:14]} 17. Rxd8+ {[%clk 0:01:41]}  Rxd8 {[%clk 0:02:15]} 18. Rxd8+ {[%clk 0:01:41]}  Bxd8 {[%clk 0:02:16]} 19. Kc2 {[%clk 0:01:37]}  f5 {[%clk 0:02:15]} 20. f3 {[%clk 0:01:37]}  Kf7 {[%clk 0:02:15]} 21. c4 {[%clk 0:01:37]}  Ke6 {[%clk 0:02:14]} 22. a3 {[%clk 0:01:31]}  Bf6 {[%clk 0:02:12]} 23. Kd3 {[%clk 0:01:28]}  e4+ {[%clk 0:02:10]} 24. fxe4 {[%clk 0:01:23]}  Bxb2 {[%clk 0:02:07]} 25. exf5+ {[%clk 0:00:53]}  Kxf5 {[%clk 0:02:08]} 26. a4 {[%clk 0:00:51]}  Ne5+ {[%clk 0:02:06]} 27. Kc2 {[%clk 0:00:51]}  Nxc4 {[%clk 0:02:04]} 28. Bxa7 {[%clk 0:00:50]}  Be5 {[%clk 0:02:04]} 29. h3 {[%clk 0:00:46]}  Ke4 {[%clk 0:02:03]} 30. Nc3+ {[%clk 0:00:42]}  Kf5 {[%clk 0:01:36]} 31. Kd3 {[%clk 0:00:40]}  Nb2+ {[%clk 0:01:34]} 32. Kc2 {[%clk 0:00:40]}  Nc4 {[%clk 0:01:18]} 33. Kd3 {[%clk 0:00:40]}  Nb2+ {[%clk 0:00:58]} 34. Kc2 {[%clk 0:00:40]}  Nc4 {[%clk 0:00:58]} 1/2-1/2


[Site "https://www.chess.com"]

[Event "Titled Tuesday Blitz September 27 Early 2022"]
[White "Samaganova, Aleksandra"]
[Black "Tsukerman, Julia"]
[WhiteFideId "13800221"]
[BlackFideId "2621649"]
[WhiteElo "1864"]
[BlackElo "1667"]
[Result "1-0"]
[Round "05"]
[TimeControl "180+1"]
[Date "2022.09.27"]
[WhiteClock "0:00:43"]
[BlackClock "0:00:20"]

1. c4 {[%clk 0:01:23]}  e6 {[%clk 0:00:56]} 2. Nc3 {[%clk 0:01:22]}  d5 {[%clk 0:00:56]} 3. e3 {[%clk 0:01:21]}  Nf6 {[%clk 0:00:55]} 4. Nf3 {[%clk 0:01:21]}  Be7 {[%clk 0:00:55]} 5. d4 {[%clk 0:01:21]}  O-O {[%clk 0:00:56]} 6. Bd3 {[%clk 0:01:20]}  dxc4 {[%clk 0:00:54]} 7. Bxc4 {[%clk 0:01:20]}  a6 {[%clk 0:00:54]} 8. O-O {[%clk 0:01:19]}  b5 {[%clk 0:00:55]} 9. Bd3 {[%clk 0:01:20]}  Bb7 {[%clk 0:00:55]} 10. a3 {[%clk 0:01:20]}  Nbd7 {[%clk 0:00:55]} 11. b4 {[%clk 0:01:20]}  Nb6 {[%clk 0:00:52]} 12. Qe2 {[%clk 0:01:18]}  Rc8 {[%clk 0:00:49]} 13. Bb2 {[%clk 0:01:13]}  Nfd5 {[%clk 0:00:46]} 14. Rac1 {[%clk 0:01:10]}  Bf6 {[%clk 0:00:41]} 15. Ne4 {[%clk 0:01:08]}  Be7 {[%clk 0:00:37]} 16. Nc5 {[%clk 0:01:08]}  Bxc5 {[%clk 0:00:36]} 17. dxc5 {[%clk 0:01:06]}  Nd7 {[%clk 0:00:32]} 18. c6 {[%clk 0:01:05]}  Bxc6 {[%clk 0:00:28]} 19. Rxc6 {[%clk 0:01:05]}  Nb8 {[%clk 0:00:28]} 20. Rcc1 {[%clk 0:01:04]}  Qd6 {[%clk 0:00:29]} 21. Be5 {[%clk 0:01:02]}  Qd7 {[%clk 0:00:29]} 22. Bb1 {[%clk 0:00:59]}  f6 {[%clk 0:00:28]} 23. Bb2 {[%clk 0:00:57]}  Nc6 {[%clk 0:00:27]} 24. Qc2 {[%clk 0:00:56]}  Nce7 {[%clk 0:00:24]} 25. Qxh7+ {[%clk 0:00:55]}  Kf7 {[%clk 0:00:23]} 26. Qh5+ {[%clk 0:00:45]}  Kg8 {[%clk 0:00:22]} 27. Bh7+ {[%clk 0:00:43]}  Kh8 {[%clk 0:00:20]} 28. Bg6+ {[%clk 0:00:43]} 1-0


[Site "https://www.chess.com"]

[Event "Titled Tuesday Blitz September 27 Early 2022"]
[White "Samunenkov, Ihor"]
[Black "Becerra, Juan David"]
[WhiteFideId "14187086"]
[BlackFideId "4404998"]
[WhiteElo "2441"]
[BlackElo "2278"]
[Result "0-1"]
[Round "05"]
[TimeControl "180+1"]
[Date "2022.09.27"]
[WhiteClock "0:00:05"]
[BlackClock "0:00:12"]

1. d4 {[%clk 0:02:51]}  d5 {[%clk 0:02:57]} 2. c4 {[%clk 0:02:51]}  c6 {[%clk 0:02:55]} 3. Nc3 {[%clk 0:02:43]}  e6 {[%clk 0:02:52]} 4. e3 {[%clk 0:02:36]}  Nf6 {[%clk 0:02:52]} 5. b3 {[%clk 0:02:27]}  Bb4 {[%clk 0:02:51]} 6. Bd2 {[%clk 0:02:27]}  Qa5 {[%clk 0:02:45]} 7. Nge2 {[%clk 0:02:23]}  Nbd7 {[%clk 0:02:13]} 8. a3 {[%clk 0:02:21]}  Bxc3 {[%clk 0:02:13]} 9. Nxc3 {[%clk 0:02:20]}  Qc7 {[%clk 0:02:13]} 10. Rc1 {[%clk 0:02:18]}  O-O {[%clk 0:02:12]} 11. Be2 {[%clk 0:02:17]}  dxc4 {[%clk 0:02:11]} 12. bxc4 {[%clk 0:02:02]}  e5 {[%clk 0:02:11]} 13. d5 {[%clk 0:01:58]}  Nc5 {[%clk 0:02:09]} 14. O-O {[%clk 0:01:49]}  Bf5 {[%clk 0:02:09]} 15. f3 {[%clk 0:01:23]}  e4 {[%clk 0:01:41]} 16. f4 {[%clk 0:01:13]}  Nd3 {[%clk 0:01:27]} 17. Rb1 {[%clk 0:01:02]}  Qd7 {[%clk 0:01:27]} 18. dxc6 {[%clk 0:00:45]}  Qxc6 {[%clk 0:01:22]} 19. g4 {[%clk 0:00:42]}  Be6 {[%clk 0:01:21]} 20. g5 {[%clk 0:00:42]}  Nd7 {[%clk 0:01:21]} 21. Bxd3 {[%clk 0:00:28]}  exd3 {[%clk 0:01:22]} 22. e4 {[%clk 0:00:24]}  Bxc4 {[%clk 0:01:16]} 23. Qf3 {[%clk 0:00:19]}  Nc5 {[%clk 0:01:13]} 24. f5 {[%clk 0:00:16]}  Rfe8 {[%clk 0:01:03]} 25. Rfe1 {[%clk 0:00:16]}  Nd7 {[%clk 0:00:59]} 26. Bf4 {[%clk 0:00:07]}  b5 {[%clk 0:00:54]} 27. f6 {[%clk 0:00:05]}  Ne5 {[%clk 0:00:53]} 28. Bxe5 {[%clk 0:00:04]}  Rxe5 {[%clk 0:00:54]} 29. fxg7 {[%clk 0:00:05]}  Rxg5+ {[%clk 0:00:51]} 30. Kh1 {[%clk 0:00:05]}  Re8 {[%clk 0:00:49]} 31. Rg1 {[%clk 0:00:05]}  Rxg1+ {[%clk 0:00:49]} 32. Rxg1 {[%clk 0:00:06]}  a5 {[%clk 0:00:46]} 33. Nd5 {[%clk 0:00:06]}  Bxd5 {[%clk 0:00:22]} 34. exd5 {[%clk 0:00:07]}  Qc4 {[%clk 0:00:13]} 35. Rf1 {[%clk 0:00:07]}  Qe4 {[%clk 0:00:12]} 36. Kg2 {[%clk 0:00:03]}  Qxf3+ {[%clk 0:00:10]} 37. Kxf3 {[%clk 0:00:04]}  Kxg7 {[%clk 0:00:09]} 38. Rd1 {[%clk 0:00:04]}  b4 {[%clk 0:00:09]} 39. axb4 {[%clk 0:00:04]}  axb4 {[%clk 0:00:09]} 40. Rxd3 {[%clk 0:00:05]}  Rb8 {[%clk 0:00:10]} 41. d6 {[%clk 0:00:05]}  b3 {[%clk 0:00:09]} 42. d7 {[%clk 0:00:05]}  b2 {[%clk 0:00:10]} 43. Rd1 {[%clk 0:00:03]}  Kf6 {[%clk 0:00:09]} 44. Rb1 {[%clk 0:00:01]}  Rb3+ {[%clk 0:00:09]} 45. Kg4 {[%clk 0:00:01]}  Ke7 {[%clk 0:00:09]} 46. Kh5 {[%clk 0:00:02]}  Rb6 {[%clk 0:00:09]} 47. h4 {[%clk 0:00:01]}  Kxd7 {[%clk 0:00:10]} 48. Kg5 {[%clk 0:00:02]}  Ke7 {[%clk 0:00:10]} 49. Re1+ {[%clk 0:00:02]}  Kf8 {[%clk 0:00:10]} 50. Rb1 {[%clk 0:00:02]}  h6+ {[%clk 0:00:10]} 51. Kh5 {[%clk 0:00:03]}  Kg7 {[%clk 0:00:10]} 52. Rg1+ {[%clk 0:00:03]}  Kh7 {[%clk 0:00:11]} 53. Rb1 {[%clk 0:00:03]}  Rb5+ {[%clk 0:00:11]} 54. Kg4 {[%clk 0:00:03]}  h5+ {[%clk 0:00:11]} 55. Kf4 {[%clk 0:00:04]}  Kg6 {[%clk 0:00:11]} 56. Rg1+ {[%clk 0:00:04]}  Kf6 {[%clk 0:00:12]} 57. Rb1 {[%clk 0:00:05]}  Rb4+ {[%clk 0:00:12]} 0-1


[Site "https://www.chess.com"]

[Event "Titled Tuesday Blitz September 27 Early 2022"]
[White "Sargissyan, Sargis"]
[Black "De Souza, Cristiano Gomes"]
[WhiteFideId "13303210"]
[BlackFideId "2151758"]
[WhiteElo "2102"]
[BlackElo "2068"]
[Result "1-0"]
[Round "05"]
[TimeControl "180+1"]
[Date "2022.09.27"]
[WhiteClock "0:02:04"]
[BlackClock "0:01:32"]

1. e4 {[%clk 0:02:55]}  c5 {[%clk 0:02:59]} 2. Nf3 {[%clk 0:02:56]}  d6 {[%clk 0:02:59]} 3. d4 {[%clk 0:02:56]}  cxd4 {[%clk 0:02:59]} 4. Nxd4 {[%clk 0:02:57]}  Nf6 {[%clk 0:02:59]} 5. Nc3 {[%clk 0:02:58]}  a6 {[%clk 0:02:58]} 6. Bg5 {[%clk 0:02:58]}  e6 {[%clk 0:02:58]} 7. f4 {[%clk 0:02:58]}  Be7 {[%clk 0:02:58]} 8. Qf3 {[%clk 0:02:58]}  h6 {[%clk 0:02:58]} 9. Bxf6 {[%clk 0:02:49]}  Bxf6 {[%clk 0:02:58]} 10. O-O-O {[%clk 0:02:50]}  Qa5 {[%clk 0:02:40]} 11. g4 {[%clk 0:02:33]}  Nd7 {[%clk 0:02:26]} 12. h4 {[%clk 0:02:32]}  Nc5 {[%clk 0:02:18]} 13. g5 {[%clk 0:02:31]}  hxg5 {[%clk 0:02:13]} 14. hxg5 {[%clk 0:02:32]}  Rxh1 {[%clk 0:02:11]} 15. Qxh1 {[%clk 0:02:33]}  Be7 {[%clk 0:02:06]} 16. Qh8+ {[%clk 0:02:27]}  Bf8 {[%clk 0:02:05]} 17. g6 {[%clk 0:02:16]}  f6 {[%clk 0:02:01]} 18. Qg8 {[%clk 0:02:11]}  Qc7 {[%clk 0:01:59]} 19. f5 {[%clk 0:02:05]}  e5 {[%clk 0:01:58]} 20. Ne6 {[%clk 0:02:05]}  Nxe6 {[%clk 0:01:57]} 21. fxe6 {[%clk 0:02:05]}  Qe7 {[%clk 0:01:47]} 22. Nd5 {[%clk 0:02:03]}  Bxe6 {[%clk 0:01:46]} 23. Nxe7 {[%clk 0:02:03]}  Bxg8 {[%clk 0:01:45]} 24. Nxg8 {[%clk 0:02:04]}  Kd7 {[%clk 0:01:43]} 25. Bc4 {[%clk 0:02:04]}  Rc8 {[%clk 0:01:37]} 26. Bd5 {[%clk 0:02:04]}  Rc7 {[%clk 0:01:36]} 27. Rh1 {[%clk 0:02:05]}  b5 {[%clk 0:01:34]} 28. Rh8 {[%clk 0:02:04]}  Be7 {[%clk 0:01:33]} 29. Nxe7 {[%clk 0:02:04]}  Kxe7 {[%clk 0:01:32]} 30. Rg8 {[%clk 0:02:04]} 1-0


[Site "https://www.chess.com"]